Cogmind - Beta 13 @@@ ROGUE MODE // 2024.04.03 @ 23:44:20 Player: Ciaphas Result: Self-destructed Performance ------------- Evolutions (2) 1000 Regions Visited (5) 1000 Robots Destroyed (33) 165 Value Destroyed (1074) 1074 Prototype IDs (24) 480 Alien Tech Used (0) 0 Bonus (453) 453 TOTAL SCORE: 4172 Bonus ------- High Alert Combat Kills 108 Follower Combat Kills 45 Aligned with FarCom 300 Cogmind --------- Core Integrity 515/550 Matter 211/300 Energy 139/140 System Corruption 1% Temperature Cool (0) Movement Hovering (46) Location -8/Materials Parts ------- > --- POWER (1) -------- Light Deuterium Engine > --- PROPULSION (4) --- Improved Airjet Improved Airjet > --- UTILITY (4) ------ Improved Heat Sink Small Storage Unit Graphene Brace > --- WEAPON (2) ------- Beamcaster > --- INVENTORY (8) ---- Cesium-ion Thruster High-capacity Matter Pod (200) Improved Light Armor Plating Relay Coupler [Hunter] (11) Mining Laser Peak State ------------ > --- POWER ------------ Light Nuclear Core > --- PROPULSION ------- Improved Hover Unit Improved Airjet Improved Airjet Improved Airjet > --- UTILITY ---------- Small Storage Unit Signal Interpreter Improved Light Armor Plating Graphene Brace > --- WEAPON ----------- AWS/Thermal > --- INVENTORY -------- Nuclear Core High-capacity Matter Pod Improved Light Armor Plating Improved Medium Armor Plating Beamcaster Grenade Launcher Heavy Rocket Launcher Mining Laser [Rating: 50] Favorites ----------- Power Light Nuclear Core Engine Ion Engine Power Core Light Nuclear Core Propulsion Light Treads Treads Light Treads Leg Aluminum Leg Hover Unit Improved Airjet Utility Small Storage Unit Device Graphene Brace Storage Small Storage Unit Processor Signal Interpreter Protection Improved Light Armor Plating Weapon Assault Rifle Energy Gun AWS/Thermal Ballistic Gun Assault Rifle Launcher Heavy Rocket Launcher Build | -11 -10 -10 -10 -9 -8 ------- Run | Yrd Mat Min Exi Min Mat Slots Evolved 4 | . . . . . 4 Power . | . . . . . . Propulsion 2 | . . . . . 2 Utility 2 | . . . . . 2 Weapon . | . . . . . . Parts Attached 31 | 4 1 1 1 . 24 Power 7 | 1 1 . . . 5 Engine 2 | 1 . . . . 1 Core 5 | . 1 . . . 4 Reactor . | . . . . . . Propulsion 10 | 2 . . . . 8 Treads 3 | 2 . . . . 1 Leg . | . . . . . . Wheel . | . . . . . . Hover 7 | . . . . . 7 Flight . | . . . . . . Utility 8 | . . 1 . . 7 Device 2 | . . . . . 2 Storage . | . . . . . . Processor 1 | . . 1 . . . Hackware . | . . . . . . Protection 5 | . . . . . 5 Artifact . | . . . . . . Weapon 6 | 1 . . 1 . 4 Energy Gun 2 | . . . 1 . 1 Energy Cannon . | . . . . . . Ballistic Gun 1 | 1 . . . . . Ballistic Cannon . | . . . . . . Launcher 3 | . . . . . 3 Special Weapon . | . . . . . . Impact Weapon . | . . . . . . Slashing Weapon . | . . . . . . Piercing Weapon . | . . . . . . Special Melee Weapon . | . . . . . . Unidentified Prototypes 1 | . . . . . 1 Parts Lost 7 | . . . . . 7 Power 1 | . . . . . 1 Propulsion 3 | . . . . . 3 Utility 2 | . . . . . 2 Weapon 1 | . . . . . 1 Highest Loss Streak 4 | . . . . . 4 To Critical Strikes . | . . . . . . Average Slot Usage (%) 89 | . 85 98 93 85 85 Engine 1 | . 8 . . . 1 Core 10 | . 5 14 14 14 6 Treads 17 | . 28 28 28 28 1 Hover 10 | . . . . . 29 Device 4 | . . . . . 11 Storage 12 | . 14 14 14 14 9 Processor 8 | . . 12 14 14 5 Protection 3 | . . . . . 8 Energy Gun 5 | . . . 5 14 9 Ballistic Gun 12 | . 28 28 16 . . Launcher 1 | . . . . . 3 Naked Turns . | . . . . . . Heaviest Build 27 | 13 13 13 18 18 27 Greatest Support 40 | 40 40 40 40 40 40 Greatest Overweight (x) 1 | . . . . . 1 Average Overweight (x) . | . . . . . . Largest Inventory Capacity 8 | 8 8 8 8 8 8 Average Capacity 8 | 8 8 8 8 8 8 Most Carried 8 | 6 8 6 8 7 8 Average Carried 6 | 6 7 6 6 6 6 Final Capacity 8 | 8 8 8 8 8 8 Final Carried 7 | 6 6 6 6 7 5 Class Distribution -------------------- 94% | Mutant 5% | Scavenger-Mutant Dominant Class ---------------- Mutant | -10/Materials Mutant | -10/Mines Mutant | -10/Exiles Mutant | -9/Mines Mutant | -8/Materials Resources | -11 -10 -10 -10 -9 -8 ----------- Run | Yrd Mat Min Exi Min Mat Matter Collected 865 | 280 68 99 . 13 405 Remotely . | . . . . . . Salvage Created 965 | 94 153 33 . . 685 Parts 57 | 4 8 4 . . 41 Haulers Intercepted 1 | . . . . . 1 Recyclers Shooed 1 | 1 . . . . . Parts Field Recycled . | . . . . . . Retrieved Matter . | . . . . . . Parts Self-Destructed . | . . . . . . Prevented . | . . . . . . Kills | -11 -10 -10 -10 -9 -8 ------- Run | Yrd Mat Min Exi Min Mat Combat Hostiles Destroyed 26 | . 3 1 . . 22 Guns 19 | . 3 1 . . 15 AOE 7 | . . . . . 7 Classes Destroyed 8 | 2 2 . . . 4 Worker 3 | . 1 . . . 2 Tunneler 1 | 1 . . . . . Hauler 1 | . . . . . 1 Recycler 1 | 1 . . . . . Watcher 1 | . . . . . 1 Swarmer 8 | . . . . . 8 Grunt 15 | . 3 1 . . 11 Sentry 3 | . . . . . 3 Best Kill Streak 7 | 2 3 1 . . 7 Combat Bots Only 7 | . 2 1 . . 7 Max Kills in Single Turn 2 | 1 1 1 . . 2 Gunslinging . | . . . . . . Exploded 2 | . . . . . 2 Melee . | . . . . . . Uniques/NPCs Destroyed . | . . . . . . Combat | -11 -10 -10 -10 -9 -8 -------- Run | Yrd Mat Min Exi Min Mat Hostile Shots Fired 143 | . 27 15 . . 101 Missed 47 | . 6 6 . . 35 Damage Taken 1678 | . 271 105 . . 1302 Core 116 | . 50 31 . . 35 Absorbed by Shields . | . . . . . . Regen/Repaired (Parts) 126 | . . . . . 126 Core Remaining (%) 83 | 100 . . . 67 . Volleys Fired 78 | 10 15 10 . . 43 Largest 2 | 2 2 2 . . 1 Hottest 75 | 40 40 40 . . 75 Shots Fired 151 | 20 30 20 . . 81 Gun 141 | 20 30 20 . . 71 Cannon . | . . . . . . Launcher 10 | . . . . . 10 Special . | . . . . . . Kinetic 70 | 20 30 20 . . . Thermal 71 | . . . . . 71 Explosive 10 | . . . . . 10 Electromagnetic . | . . . . . . Robot Hit Streak 24 | 9 13 4 . . 24 Robot Miss Streak 5 | 2 2 2 . . 5 Penetration Max . | . . . . . . Secondary Targets 1 | . 1 . . . . Max Gunslinging Chain 1 | . 1 . . . . Autonomous 39 | . . . . . 39 Shots Hit Robots 107 | 14 23 13 . . 57 Core Hits 55 | 3 9 4 . . 39 Critical Kills . | . . . . . . Critical Parts Destroyed 2 | . 1 1 . . . Critical Strikes 2 | . 1 1 . . . Destroy 2 | . 1 1 . . . Melee Attacks . | . . . . . . Impact . | . . . . . . Slashing . | . . . . . . Piercing . | . . . . . . Sneak Attacks . | . . . . . . Combat Hostiles . | . . . . . . Follow-up Attacks . | . . . . . . Damage Inflicted 2972 | 142 247 141 . . 2442 Guns 1868 | 142 247 141 . . 1338 Cannons . | . . . . . . Explosions 1104 | . . . . . 1104 Melee . | . . . . . . Ramming . | . . . . . . Kinetic 530 | 142 247 141 . . . Thermal 1418 | . . . . . 1418 Explosive 1024 | . . . . . 1024 Electromagnetic . | . . . . . . Impact . | . . . . . . Slashing . | . . . . . . Piercing . | . . . . . . Highest Corruption 1 | . . . . . 1 Average Corruption 1 | . . . . . 1 Corruption Purged . | . . . . . . Corruption Blocked . | . . . . . . Effects 5 | . . . . . 5 Message Errors 2 | . . . . . 2 Matter Fused 2 | . . . . . 2 Data Loss (major) 1 | . . . . . 1 Overload Shots . | . . . . . . Overflow Damage 118 | . . . . . 118 Projectiles . | . . . . . . Explosions 118 | . . . . . 118 Melee . | . . . . . . Knockbacks . | . . . . . . Impact . | . . . . . . Kinetic . | . . . . . . Secondary . | . . . . . . Self-Inflicted Damage 239 | . . . . . 239 Shots 4 | . . . . . 4 Rammed . | . . . . . . Targets Rammed . | . . . . . . Kicked . | . . . . . . Crushed . | . . . . . . Highest Temperature 310 | . 16 20 . . 310 Average Temperature 84 | . 8 6 . . 120 Received Heat Transfer 573 | . 153 57 . . 363 Siege Activations . | . . . . . . Robots Corrupted . | . . . . . . Combat Hostiles . | . . . . . . Parts Fried . | . . . . . . Impact Corruptions . | . . . . . . Robots Melted . | . . . . . . Combat Hostiles . | . . . . . . Parts Melted 4 | . . . . . 4 Heat Transferred 1937 | . . . . . 1937 Parts Sabotaged . | . . . . . . Parts Stolen . | . . . . . . Parts Stripped . | . . . . . . Power Chain Reactions . | . . . . . . Alert | -11 -10 -10 -10 -9 -8 ------- Run | Yrd Mat Min Exi Min Mat Peak Influence 809 | 10 81 51 . . 809 Initial 31 | . 6 31 . . . Average 145 | 4 34 39 . . 276 Maximum Alert Level 3 | . . . . . 3 Low Security (%) 73 | 100 100 100 . 100 44 Level 1 12 | . . . . . 25 Level 2 9 | . . . . . 20 Level 3 4 | . . . . . 9 Level 4 . | . . . . . . Level 5 . | . . . . . . High Security . | . . . . . . Max Security . | . . . . . . Squads Dispatched 5 | . . . . 1 4 Investigation 1 | . . . . 1 . Extermination . | . . . . . . Reinforcement 3 | . . . . . 3 Assault 1 | . . . . . 1 Garrison . | . . . . . . Intercept . | . . . . . . Searches Triggered . | . . . . . . Construction Impeded . | . . . . . . Haulers Reinforced . | . . . . . . Active Scanning Responses . | . . . . . . Cargo Convoy Interrupts . | . . . . . . Stealth | -11 -10 -10 -10 -9 -8 --------- Run | Yrd Mat Min Exi Min Mat Distress Signals 4 | . 3 . . . 1 Communications Jammed . | . . . . . . Distress Signals . | . . . . . . Times Spotted 47 | . 6 2 . . 39 Peak Tracking Total 6 | . 3 2 . . 6 Tactical Retreats 2 | . . . . . 2 Traps | -11 -10 -10 -10 -9 -8 ------- Run | Yrd Mat Min Exi Min Mat Traps Triggered 1 | . . . . . 1 Indirectly . | . . . . . . Trap Hack Attempts . | . . . . . . Triggered . | . . . . . . Disarmed . | . . . . . . Reprogrammed . | . . . . . . Reused . | . . . . . . Traps Extracted . | . . . . . . Installed . | . . . . . . Triggered . | . . . . . . Machines | -11 -10 -10 -10 -9 -8 ---------- Run | Yrd Mat Min Exi Min Mat Machines Disabled 6 | . . . . . 6 Max in Single Turn 4 | . . . . . 4 Garrison Access 1 | . . . . . 1 Machines Repaired . | . . . . . . Machines Dismantled . | . . . . . . Machines Sabotaged . | . . . . . . Overloaded Fab Kills . | . . . . . . Hacking | -11 -10 -10 -10 -9 -8 --------- Run | Yrd Mat Min Exi Min Mat Machines Accessed 10 | . 2 . 2 1 5 Terminals 3 | . 1 . . . 2 Fabricators . | . . . . . . Repair Stations 2 | . . . . . 2 Recycling Units 1 | . 1 . . . . Scanalyzers 1 | . . . . . 1 Garrison Access . | . . . . . . Total Hacks 30 | . 8 . 5 1 16 Successful 21 | . 3 . 5 1 12 Failed 9 | . 5 . . . 4 Catastrophic . | . . . . . . Database Lockouts . | . . . . . . Manual 9 | . 4 . 1 . 4 Terminals 9 | . 4 . . . 5 Fabricators . | . . . . . . Repair Stations 6 | . . . . . 6 Recycling Units 4 | . 4 . . . . Scanalyzers 5 | . . . . . 5 Garrison Access . | . . . . . . Terminal Hacks 7 | . . . 5 1 1 Record 4 | . . . 4 . . Robot Analysis 1 | . . . . . 1 Open Door 1 | . . . . 1 . Derelict Proto ID Bank 1 | . . . 1 . . Fabricator Hacks . | . . . . . . Repair Station Hacks 5 | . . . . . 5 Scan Component 3 | . . . . . 3 Repair 2 | . . . . . 2 Recycling Unit Hacks 3 | . 3 . . . . Process 1 | . 1 . . . . Report Inventory 1 | . 1 . . . . Retrieve Matter 1 | . 1 . . . . Scanalyzer 4 | . . . . . 4 Insert Component 2 | . . . . . 2 Analyze 2 | . . . . . 2 Garrison Access Hacks . | . . . . . . Unauthorized Hacks 2 | . . . . . 2 Terminals 2 | . . . . . 2 Botnet 2 | . . . . . 2 Fabricators . | . . . . . . Repair Stations . | . . . . . . Recycling Units . | . . . . . . Scanalyzers . | . . . . . . Garrison Access . | . . . . . . Data Cores Recovered . | . . . . . . Used . | . . . . . . Hacking Detections 5 | . 1 . . . 4 Full Trace Events 1 | . . . . . 1 Feedback Events . | . . . . . . Feedback Blocked . | . . . . . . Robot Schematics Acquired . | . . . . . . Robots Built . | . . . . . . Authchips . | . . . . . . Time . | . . . . . . Total Robot Build Rating . | . . . . . . Part Schematics Acquired 1 | . . . . . 1 Parts Built . | . . . . . . Authchips . | . . . . . . Time . | . . . . . . Total Part Build Rating . | . . . . . . Parts Repaired 2 | . . . . . 2 Time 140 | . . . . . 140 Parts Recycled . | . . . . . . Recycled Matter 7 | . 7 . . . . Retrieved Matter 7 | . 7 . . . . Retrieved Components . | . . . . . . Parts Scanalyzed 1 | . . . . . 1 Part Schematics Acquired 1 | . . . . . 1 Parts Damaged . | . . . . . . Bothacking | -11 -10 -10 -10 -9 -8 ------------ Run | Yrd Mat Min Exi Min Mat Used RIF Installer . | . . . . . . Robots Hacked . | . . . . . . Non-combat . | . . . . . . Combat . | . . . . . . Robot Hacks Applied . | . . . . . . Relay Couplers Released 2 | . . . . . 2 Machine Destruction 2 | . . . . . 2 Fabnet Peak Effective % . | . . . . . . Robots Rewired . | . . . . . . Allies Hacked . | . . . . . . Hacks Repelled . | . . . . . . Allies | -11 -10 -10 -10 -9 -8 -------- Run | Yrd Mat Min Exi Min Mat Total Allies 2 | . . . . 2 . Largest Group 2 | . . . . 2 2 Highest-Rated Group 41 | . . . . 41 41 Highest-Rated Ally 31 | . . . . 31 31 Total Orders . | . . . . . . Ally Attacks 10 | . . . . . 10 Total Damage 168 | . . . . . 168 Kills 1 | . . . . . 1 Allies Corrupted . | . . . . . . Allies Melted . | . . . . . . Intel | -11 -10 -10 -10 -9 -8 ------- Run | Yrd Mat Min Exi Min Mat Robot Analysis Total 1 | . . . . . 1 Derelict Logs Recovered 2 | . . 2 . . . Drone Launches . | . . . . . . Drone Recoveries . | . . . . . . Exploration | -11 -10 -10 -10 -9 -8 ------------- Run | Yrd Mat Min Exi Min Mat Turns Passed 1652 | 62 254 214 392 129 601 Spaces Moved 1111 | 18 129 114 243 79 528 Core . | . . . . . . Treads 590 | 18 129 114 243 79 7 Legs . | . . . . . . Wheels . | . . . . . . Hover 521 | . . . . . 521 Flight . | . . . . . . Fastest Speed 40 | 160 160 160 160 160 40 Average Speed 107 | 160 160 160 160 160 49 Slowest Speed 160 | 160 160 160 160 160 160 Overloaded Moves . | . . . . . . Propulsion Burnouts . | . . . . . . Robots Hopped . | . . . . . . Cave-ins Triggered . | . . . . . . Exploration Rate (%) 34 | 4 35 36 61 28 41 Regions Visited 5 Branch Regions 3 Pre-discovered Areas 4 | . . 2 1 1 . Known Exits Taken 3 | . . 1 1 1 . Unknown Exits Taken 2 | 1 1 . . . . Scrap Searched 2 | . . 1 . 1 . Spaces Dug 7 | . . . . . 7 Terrain Destroyed 143 | . . . . . 143 Melee . | . . . . . . Projectile 6 | . . . . . 6 AOE 137 | . . . . . 137 Terrain Rammed . | . . . . . . Walls Destroyed . | . . . . . . Machines Disabled . | . . . . . . Actions | -11 -10 -10 -10 -9 -8 --------- Run | Yrd Mat Min Exi Min Mat Total 1461 | 31 151 127 247 82 823 Wait 212 | . . 3 . 1 208 Move 1106 | 17 128 113 242 78 528 Hop . | . . . . . . Pick Up 12 | . 3 . 1 2 6 Fast Attach 15 | . 1 1 1 . 12 Attach 7 | . . . . . 7 Detach 4 | . . . . . 4 Swap 9 | 4 . . . . 5 Drop 18 | . 4 . 3 1 10 Fire 78 | 10 15 10 . . 43 Melee . | . . . . . . Ram . | . . . . . . Kick . | . . . . . . Crush . | . . . . . . Escape Stasis . | . . . . . . Rewire . | . . . . . . Trap . | . . . . . . Miscellaneous . | . . . . . . Route ------- -11/Scrapyard -10/Materials -10/Mines -10/Exiles -9/Mines -8/Materials (discovered 2 exits: [*Fac] / [*Sto]) History --------- Turn | Location | Event 6 | -11/Scrapyard | Discovered new exit (range 1) 63 | -11/Scrapyard | Entered Materials 243 | -10/Materials | Discovered new exit (range 15) 317 | -10/Materials | Entered Mines 351 | -10/Mines | Build established: Mutant 476 | -10/Mines | Learned location of Storage (-8) 524 | -10/Mines | Deemed a non-threat by the Exiles lab entrance 524 | -10/Mines | Discovered new exit (range 5) 529 | -10/Mines | Identified exit to Exiles 531 | -10/Mines | Entered Exiles 568 | -10/Exiles | Met 8R-AWN 599 | -10/Exiles | Met EX-HEX 667 | -10/Exiles | Learned location of Zion (-7) 695 | -10/Exiles | Met EX-BIN 717 | -10/Exiles | Aligned with FarCom system 719 | -10/Exiles | Given EX-Vault access code 755 | -10/Exiles | Opened EX-Vault 767 | -10/Exiles | Found AWS/Thermal 803 | -10/Exiles | Warned to stay clear of 0b10 Research branches 847 | -10/Exiles | Met EX-DEC 903 | -10/Exiles | Discovered new exit (range 10) 916 | -10/Exiles | Identified exit to Mines 923 | -10/Exiles | Left Exiles lab with AWS/Thermal 923 | -10/Exiles | Entered Mines 930 | -9/Mines | Met a Derelict shopkeep closing up shop 1039 | -9/Mines | Discovered new exit (range 9) 1050 | -9/Mines | Identified exit to Materials 1052 | -9/Mines | Entered Materials 1052 | -8/Materials | Accompanied by 2 allies 1052 | -8/Materials | Evolved 4 slots: Propulsion x2, Utility x2 1057 | -8/Materials | Led the pair of lost Derelicts to an unsafe place 1266 | -8/Materials | Repaired Imp. Airjet 1319 | -8/Materials | Discovered new exit (range 15) 1406 | -8/Materials | Destroyed 7 combat bots 1522 | -8/Materials | Repaired Imp. Airjet 1540 | -8/Materials | Discovered new exit (range 7) 1652 | -8/Materials | Lost 4 parts (1n2u1w) 1653 | -8/Materials | Self-destructed Last Messages --------------- 01632_ K-01 Serf collects debris. 01632_ U-05 Engineer builds a Wall. 01633_ Y-45 Defender destroyed. 01634_ The unstable cave ceiling collapses. 01635_ K-01 Serf collects debris. 01636_ The unstable cave ceiling collapses. 01638_ Acquired 4 matter. 01638_ K-01 Serf collects debris. 01638_ U-05 Engineer builds a Wall. 01640_ Acquired 15 matter. 01642_ U-05 Engineer builds a Wall. 01642_ U-05 Engineer lays Concrete. 01643_ K-01 Serf collects debris. 01643_ U-05 Engineer lays Concrete. 01645_ K-01 Serf collects debris. 01645_ U-05 Engineer lays Concrete. 01651_ C-30 ARC bursts open, deploying its payload. 01651_ G-50 Soldier unfolds itself. 01651_ G-47 Trooper unfolds itself. 01651_ I-25 Savior unfolds itself. Map ----- +----------------------------------------------------+ | ####### =%%[ # #########+#####????????????? | | ??????# == # ## #????????????? | | ??????############# ## #????????????? | | ????????########### ## ! #????????????? | | ????????# ## ## #????????????? | | ????????# ## ## #????????????? | | ????????# """ # #####+######+########?????? | | ????????# """""=# #???# #] [ #?????? | | ????????# """""!+ T #???# # #?????? | | ????????# """""%# #???# # #?????? | | ????????# """!!# #####+##???# # """ #?????? | | ????????# ### ###??????????# + """ #?????? | | ????????# #?# #????????????# # """ #?????? | | ????????##########?#+#????????????# ############?? | | ???????????????????? ?????????????# #?# """ #?? | | ??????????????????????????????????# #?# "R" #?? | | ??????????????????????????????????# ### " " #?? | | ??????????????????????????????????# # ] #?? | | ??????????????? ?????????????????# ]+ !#?? | | ???????????????? ????????????????# # """ #?? | | ????????????????? ??????????????# """ #?? | | ??????????????????? ??????????#### ! """ #?? | | ??????????????????###+###??????# ## #?? | | ????????########### ######## ## #########?? | | ???????? a t [ [g ##?##??????? | | ??????? g @ *%!*gg ## #####??? | | ???????? g = = g% i ##?? | | ?????????????###### ##########/## # """"?? | | ?????????????# #####%= ###* #w "#? | | ?????????????# # #= " ? | | ??????????????# #u # "" " # | | ??????????##### #### "G # " # | | ??????????# = # " / " # | | ??????????# # # " # | | ??????????# " #### # ## """"""#? | | ??????????# " " #? | | ??????????# "" < ########? | | ??????????# " #???????? | | ??????????# # ###################???????? | | ??????????# ####?????????????????????????? | | ??????????# ##????????????????????????????? | | ??????????#### ### #?????????????????????????????? | | | | | | | | | | | | | | | | | +----------------------------------------------------+ Best States ------------- Heat Dissipation 45 Energy Generation 14 Energy Capacity 250 Matter Stores 300 Matter Capacity 300 Sight Range 16 Terrain Scan Density 10 Armor Coverage 225 Evasion (%) 57 Recoil Reduction 2 Item Schematics ----------------- Beamcaster | -8/Materials | Scanalyzed Robot Schematics ------------------ None Fabricated ------------ Nothing Alien Tech Used ----------------- None Achievements -------------- None Challenges ------------ None Game ------ Seed ChipTrackerRay Manual? 0 Play Time 00:25:18 Cumulative 10.9 hours Start 2024.04.03 @ 23:17:53 End 2024.04.03 @ 23:44:20 Sessions 1 Manual Loads 0 Difficulty Rogue Special Mode None Game No. 18 Rogue 18 Adventurer 0 Explorer 0 Win Type - Total 0 Types 0/0/0/0/0/0/0/0/0 Lore% 19 Gallery% 15 Achievement% 24 Wizard Run 0 Options --------- Layout 0 ASCII 0 Keyboard 0 Movement Mouse Keybinds 0 Fullscreen 2 Font 24/Proggy Map View 76x50 Zoom Use 0% Tactical HUD 1 Map Filters NONE Filters NONE Steam 1 RUN: 71398b2a-e7fc-46a3-961c-d29103fa3282